fUSD/lending_fUSD_20251014
["ID","MTS","AMOUNT","RATE_DAILY","PERIOD"]
[391170132,1760406640766,-2338.93,0.00029576,7]
[391170134,1760406640775,-500.0,0.00029576,7]
[391170136,1760406640786,-500.0,0.00029576,7]
[391170139,1760406640795,-500.0,0.00029576,7]
[391170141,1760406640804,-500.0,0.00029576,7]
[391170143,1760406640813,-758.57,0.00029576,7]
[391170145,1760406640822,-727.86,0.00029576,7]
[391170147,1760406640831,-628.16,0.00029576,7]
[391170149,1760406640840,-645.96,0.00029576,7]
[391170151,1760406640851,-1320.2,0.00029576,7]
[391170153,1760406640862,-647.19,0.00029576,7]
[391170155,1760406640871,-517.46,0.00029576,7]
[391170157,1760406640880,-607.61,0.00029576,7]
[391170159,1760406640889,-500.0,0.00029576,7]
[391170161,1760406640899,-601.23,0.00029576,7]
[391170163,1760406640908,-736.8,0.00029576,7]
[391170165,1760406640916,-604.58,0.00029576,7]
[391170167,1760406640926,-500.0,0.00029576,7]
[391170169,1760406640938,-500.0,0.00029576,7]
[391170171,1760406640947,-500.0,0.00029576,7]
[391170173,1760406640956,-500.0,0.00029576,7]
[391170175,1760406640964,-500.0,0.00029576,7]
[391170177,1760406640974,-519.51,0.00029576,7]
[391170179,1760406640983,-500.0,0.00029576,7]
[391170180,1760406640991,-610.9,0.00029576,7]
[391170182,1760406641000,-729.21,0.00029576,7]
[391170184,1760406641009,-500.0,0.00029576,7]
[391170187,1760406641019,-500.0,0.00029576,7]
[391170188,1760406641028,-500.0,0.00029576,7]
[391170190,1760406641037,-500.0,0.00029576,7]
[391170192,1760406641046,-500.0,0.00029576,7]
[391170194,1760406641055,-500.0,0.00029576,7]
[391170196,1760406641064,-500.0,0.00029576,7]
[391170199,1760406641074,-1102.61,0.00029576,7]
[391170201,1760406641083,-699.88,0.00029576,7]
[391170202,1760406641092,-545.68,0.00029576,7]
[391170204,1760406641101,-500.0,0.00029576,7]
[391170206,1760406641110,-473.47967088,0.00029576,7]
[391170208,1760406641119,-500.0,0.00029576,7]
[391170211,1760406641128,-500.0,0.00029576,7]
[391170213,1760406641137,-1017.91,0.00029576,7]
[391170214,1760406641146,-1513.34,0.00029576,7]
[391170217,1760406641155,-768.73,0.00029576,7]
[391170219,1760406641164,-958.73,0.00029576,7]
[391170220,1760406641174,-705.84,0.00029576,7]
[391170223,1760406641183,-635.72,0.00029576,7]
[391170225,1760406641192,-849.54,0.00029576,7]
[391170226,1760406641201,-500.0,0.00029576,7]
[391170228,1760406641211,-500.0,0.00029576,7]
[391170230,1760406641219,-614.94,0.00029576,7]
[391170232,1760406641230,-4737.55,0.00029576,7]
[391170235,1760406641239,-985.56,0.00029576,7]
[391170237,1760406641248,-500.0,0.00029576,7]
[391170239,1760406641258,-500.0,0.00029576,7]
[391170241,1760406641267,-616.9497552,0.00029576,7]
[391170243,1760406641276,-530.29,0.00029576,7]
[391170245,1760406641286,-500.0,0.00029576,7]
[391170246,1760406641295,-500.0,0.00029576,7]
[391170249,1760406641304,-500.0,0.00029576,7]
[391170251,1760406641313,-500.0,0.00029576,7]
[391170253,1760406641322,-500.0,0.00029576,7]
[391170255,1760406641331,-861.46,0.00029576,7]
[391170257,1760406641340,-500.0,0.00029576,7]
[391170258,1760406641349,-725.44,0.00029576,7]
[391170260,1760406641358,-500.0,0.00029576,7]
[391170263,1760406641368,-500.0,0.00029576,7]
[391170265,1760406641377,-500.0,0.00029576,7]
[391170267,1760406641386,-675.82,0.00029576,7]
[391170269,1760406641395,-500.0,0.00029576,7]
[391170271,1760406641404,-500.0,0.00029576,7]
[391170273,1760406641413,-500.0,0.00029576,7]
[391170274,1760406641422,-500.0,0.00029576,7]
[391170277,1760406641431,-500.0,0.00029576,7]
[391170278,1760406641440,-557.25921387,0.00029576,7]
[391170281,1760406641450,-2609.39,0.00029576,7]
[391170283,1760406641460,-500.0,0.00029576,7]
[391170285,1760406641469,-500.0,0.00029576,7]
[391170286,1760406641478,-500.0,0.00029576,7]
[391170289,1760406641489,-500.0,0.00029576,7]
[391170291,1760406641497,-727.5,0.00029576,7]
[391170293,1760406641507,-3523.02,0.00029576,7]
[391170295,1760406641516,-500.0,0.00029576,7]
[391170297,1760406641525,-657.38,0.00029576,7]
[391170299,1760406641534,-945.54,0.00029576,7]
[391170301,1760406641543,-1037.6,0.00029576,7]
[391170303,1760406641552,-500.0,0.00029576,7]
[391170305,1760406641561,-500.0,0.00029576,7]
[391170306,1760406641570,-500.0,0.00029576,7]
[391170308,1760406641579,-1879.5,0.00029576,7]
[391170311,1760406641588,-971.48,0.00029576,7]
[391170313,1760406641597,-500.0,0.00029576,7]
[391170315,1760406641605,-500.0,0.00029576,7]
[391170316,1760406641614,-500.0,0.00029576,7]
[391170319,1760406641623,-792.12,0.00029576,7]
[391170320,1760406641632,-500.0,0.00029576,7]
[391170322,1760406641641,-500.0,0.00029576,7]
[391170324,1760406641650,-500.0,0.00029576,7]
[391170327,1760406641659,-500.0,0.00029576,7]
[391170328,1760406641668,-500.0,0.00029576,7]
[391170331,1760406641677,-500.0,0.00029576,7]
[391170332,1760406641686,-500.0,0.00029576,7]
[391170335,1760406641695,-1205.82,0.00029576,7]
[391170336,1760406641704,-500.0,0.00029576,7]
[391170339,1760406641714,-500.0,0.00029576,7]
[391170341,1760406641723,-500.0,0.00029576,7]
[391170343,1760406641732,-500.0,0.00029576,7]
[391170345,1760406641741,-500.0,0.00029576,7]
[391170347,1760406641750,-500.0,0.00029576,7]
[391170349,1760406641758,-1558.87,0.00029576,7]
[391170351,1760406641767,-500.0,0.00029576,7]
[391170353,1760406641777,-536.36,0.00029576,7]
[391170355,1760406641787,-751.92,0.00029576,7]
[391170357,1760406641796,-500.0,0.00029576,7]
[391170359,1760406641805,-500.0,0.00029576,7]
[391170361,1760406641814,-500.0,0.00029576,7]
[391170363,1760406641823,-500.0,0.00029576,7]
[391170365,1760406641832,-500.0,0.00029576,7]
[391170367,1760406641841,-1499.03,0.00029576,7]
[391170369,1760406641851,-945.47,0.00029576,7]
[391170371,1760406641864,-1114.81,0.00029576,7]
[391170373,1760406641874,-1319.8,0.00029576,7]
[391170375,1760406641883,-500.0,0.00029576,7]
[391170377,1760406641892,-821.23,0.00029576,7]
[391170378,1760406641902,-2779.37,0.00029576,7]
[391170381,1760406641911,-500.0,0.00029576,7]
[391170383,1760406641921,-6413.98,0.00029576,7]
[391170384,1760406641932,-996.93,0.00029576,7]
[391170386,1760406641942,-960.28,0.00029576,7]
[391170388,1760406641951,-500.0,0.00029576,7]
[391170390,1760406641960,-1075.52,0.00029576,7]
[391170392,1760406641969,-526.18,0.00029576,7]
[391170394,1760406641978,-915.89,0.00029576,7]
[391170396,1760406641988,-601.6,0.00029576,7]
[391170398,1760406641997,-874.33,0.00029576,7]
[391170400,1760406642006,-724.86,0.00029576,7]
[391170402,1760406642016,-500.0,0.00029576,7]
[391170404,1760406642026,-500.0,0.00029576,7]
[391170406,1760406642035,-691.78,0.00029576,7]
[391170409,1760406642045,-504.80696985,0.00029576,7]
[391170411,1760406642055,-634.13,0.00029576,7]
[391170413,1760406642064,-500.0,0.00029576,7]
[391170415,1760406642074,-2774.83,0.00029576,7]
[391170417,1760406642083,-1685.75,0.00029576,7]
[391170419,1760406642093,-500.0,0.00029576,7]
[391170421,1760406642102,-500.0,0.00029576,7]
[391170423,1760406642111,-1119.17,0.00029576,7]
[391170425,1760406642120,-500.0,0.00029576,7]
[391170428,1760406642130,-884.57,0.00029576,7]
[391170430,1760406642139,-500.0,0.00029576,7]
[391170433,1760406642148,-815.59,0.00029576,7]
[391170436,1760406642158,-500.0,0.00029576,7]
[391170439,1760406642168,-500.0,0.00029576,7]
[391170441,1760406642178,-610.84,0.00029576,7]
[391170444,1760406642187,-756.63,0.00029576,7]
[391170446,1760406642196,-500.0,0.00029576,7]
[391170448,1760406642206,-684.59,0.00029576,7]
[391170450,1760406642215,-500.0,0.00029576,7]
[391170452,1760406642224,-1025.9,0.00029576,7]
[391170454,1760406642234,-781.82,0.00029576,7]
[391170456,1760406642244,-699.45,0.00029576,7]
[391170458,1760406642253,-9520.66,0.00029576,7]
[391170460,1760406642263,-500.0,0.00029576,7]
[391170462,1760406642272,-583.89924631,0.00029576,7]
[391170464,1760406642281,-1429.17,0.00029576,7]
[391170467,1760406642291,-500.0,0.00029576,7]
[391170469,1760406642300,-500.0,0.00029576,7]
[391170472,1760406642310,-693.64,0.00029576,7]
[391170474,1760406642319,-500.0,0.00029576,7]
[391170476,1760406642328,-500.0,0.00029576,7]
[391170478,1760406642337,-617.9,0.00029576,7]
[391170480,1760406642347,-710.6,0.00029576,7]
[391170482,1760406642356,-3600.66,0.00029576,7]
[391170484,1760406642366,-500.0,0.00029576,7]
[391170486,1760406642375,-839.79,0.00029576,7]
[391170488,1760406642385,-500.0,0.00029576,7]
[391170490,1760406642394,-500.0,0.00029576,7]
[391170492,1760406642404,-500.0,0.00029576,7]
[391170494,1760406642413,-500.0,0.00029576,7]
[391170496,1760406642423,-711.99,0.00029576,7]
[391170498,1760406642432,-500.0,0.00029576,7]
[391170500,1760406642441,-1478.17,0.00029576,7]
[391170503,1760406642451,-500.0,0.00029576,7]
[391170505,1760406642461,-4555.89,0.00029576,7]
[391170507,1760406642471,-536.26,0.00029576,7]
[391170509,1760406642480,-501.73,0.00029576,7]
[391170511,1760406642490,-500.0,0.00029576,7]
[391170513,1760406642500,-500.0,0.00029576,7]
[391170515,1760406642509,-500.0,0.00029576,7]
[391170517,1760406642518,-539.33,0.00029576,7]
[391170519,1760406642527,-1112.59,0.00029576,7]
[391170521,1760406642537,-500.0,0.00029576,7]
[391170523,1760406642546,-1168.89,0.00029576,7]
[391170525,1760406642555,-628.4,0.00029576,7]
[391170527,1760406642565,-500.0,0.00029576,7]
[391170529,1760406642577,-500.0,0.00029576,7]
[391170531,1760406642587,-500.0,0.00029576,7]
[391170533,1760406642596,-829.51,0.00029576,7]
[391170535,1760406642606,-500.0,0.00029576,7]
[391170538,1760406642615,-554.47,0.00029576,7]
[391170540,1760406642625,-500.0,0.00029576,7]
[391170542,1760406642634,-618.59,0.00029576,7]
[391170544,1760406642644,-500.0,0.00029576,7]
[391170546,1760406642653,-500.0,0.00029576,7]
[391170548,1760406642663,-500.0,0.00029576,7]
[391170550,1760406642673,-1600.42,0.00029576,7]
[391170552,1760406642683,-724.53,0.00029576,7]
[391170554,1760406642693,-500.0,0.00029576,7]
[391170557,1760406642706,-500.0,0.00029576,7]
[391170559,1760406642715,-500.0,0.00029576,7]
[391170561,1760406642725,-763.73,0.00029576,7]
[391170563,1760406642734,-11166.57,0.00029576,7]
[391170565,1760406642744,-500.0,0.00029576,7]
[391170567,1760406642754,-500.0,0.00029576,7]
[391170569,1760406642763,-500.0,0.00029576,7]
[391170571,1760406642772,-500.0,0.00029576,7]
[391170573,1760406642782,-826.85,0.00029576,7]
[391170575,1760406642791,-800.62,0.00029576,7]
[391170577,1760406642802,-500.0,0.00029576,7]
[391170579,1760406642811,-500.0,0.00029576,7]
[391170581,1760406642821,-2268.44,0.00029576,7]
[391170583,1760406642831,-500.0,0.00029576,7]
[391170586,1760406642840,-500.0,0.00029576,7]
[391170588,1760406642850,-3229.72,0.00029576,7]
[391170590,1760406642863,-500.0,0.00029576,7]
[391170593,1760406642873,-567.26809383,0.00029576,7]
[391170596,1760406642882,-1081.45,0.00029576,7]
[391170598,1760406642891,-271.46266884,0.00029576,7]
[391170600,1760406642902,-1154.7,0.00029576,7]
[391170602,1760406642911,-500.0,0.00029576,7]
[391170604,1760406642921,-500.0,0.00029576,7]
[391170606,1760406642930,-405.61386875,0.00029576,7]
[391170608,1760406642940,-500.0,0.00029576,7]
[391170610,1760406642950,-553.15,0.00029576,7]
[391170612,1760406642959,-749.77,0.00029576,7]
[391170614,1760406642969,-998.07,0.00029576,7]
[391170616,1760406642979,-500.0,0.00029576,7]
[391170618,1760406642988,-787.61,0.00029576,7]
[391170620,1760406642998,-702.56,0.00029576,7]
[391170622,1760406643008,-578.29,0.00029576,7]
[391170624,1760406643018,-813.77,0.00029576,7]
[391170626,1760406643027,-500.0,0.00029576,7]
[391170629,1760406643037,-519.05,0.00029576,7]
[391170631,1760406643048,-500.0,0.00029576,7]
[391170633,1760406643058,-151.0,0.00029576,30]
[391170635,1760406643068,-500.0,0.00029576,7]
[391170637,1760406643078,-639.7,0.00029576,7]
[391170639,1760406643087,-500.0,0.00029576,7]
[391170641,1760406643097,-151.0,0.00029576,30]
[391170643,1760406643107,-641.13,0.00029576,7]
[391170645,1760406643117,-505.54,0.00029576,7]
[391170647,1760406643126,-500.0,0.00029576,7]
[391170649,1760406643136,-151.0,0.00029576,30]
[391170651,1760406643145,-500.0,0.00029576,7]
[391170654,1760406643155,-2699.29,0.00029576,7]
[391170656,1760406643164,-832.47,0.00029576,7]
[391170658,1760406643173,-1064.39,0.00029576,7]
[391170660,1760406643183,-500.0,0.00029576,7]
[391170662,1760406643192,-1736.31,0.00029576,7]
[391170664,1760406643202,-647.77,0.00029576,7]
[391170666,1760406643211,-500.0,0.00029576,7]
[391170668,1760406643221,-500.0,0.00029576,7]
[391170670,1760406643231,-500.0,0.00029576,7]
[391170672,1760406643242,-500.0,0.00029576,7]
[391170674,1760406643251,-500.0,0.00029576,7]
[391170676,1760406643261,-842.03,0.00029576,7]
[391170678,1760406643270,-500.0,0.00029576,7]
[391170679,1760406643280,-503.51,0.00029576,7]
[391170680,1760406643290,-607.0,0.00029576,7]
[391170681,1760406643300,-6662.48,0.00029576,7]
[391170682,1760406643310,-599.67,0.00029576,7]
[391170683,1760406643319,-500.0,0.00029576,7]
[391170684,1760406643328,-227.303001,0.00029576,30]
[391170685,1760406643338,-1119.19,0.00029576,7]
[391170686,1760406643348,-570.8,0.00029576,7]
[391170687,1760406643357,-1442.32,0.00029576,7]
[391170688,1760406643367,-2505.1,0.00029576,7]
[391170689,1760406643377,-500.0,0.00029576,7]
[391170691,1760406643387,-500.0,0.00029576,7]
[391170693,1760406643397,-664.59,0.00029576,7]
[391170695,1760406643406,-500.0,0.00029576,7]
[391170697,1760406643416,-500.0,0.00029576,7]
[391170699,1760406643426,-500.0,0.00029576,7]
[391170701,1760406643436,-500.0,0.00029576,7]
[391170703,1760406643445,-466.74919121,0.00029576,7]
[391170705,1760406643455,-500.0,0.00029576,7]
[391170707,1760406643464,-194.964288,0.00029576,30]
[391170709,1760406643474,-154.203524,0.00029576,30]
[391170711,1760406643484,-637.86,0.00029576,7]
[391170713,1760406643494,-194.964288,0.00029576,30]
[391170716,1760406643505,-1160.68,0.00029576,7]
[391170718,1760406643515,-500.0,0.00029576,7]
[391170720,1760406643524,-500.0,0.00029576,7]
[391170722,1760406643535,-194.964288,0.00029576,30]
[391170724,1760406643544,-500.0,0.00029576,7]
[391170726,1760406643554,-194.964288,0.00029576,30]
[391170728,1760406643563,-500.0,0.00029576,7]
[391170730,1760406643573,-798.23,0.00029576,7]
[391170732,1760406643582,-1270.88,0.00029576,7]
[391170734,1760406643592,-500.0,0.00029576,7]
[391170736,1760406643601,-500.0,0.00029576,7]
[391170738,1760406643611,-500.0,0.00029576,7]
[391170740,1760406643620,-500.0,0.00029576,7]
[391170742,1760406643629,-500.0,0.00029576,7]
[391170744,1760406643639,-511.17758831,0.00029576,7]
[391170746,1760406643649,-500.0,0.00029576,7]
[391170748,1760406643659,-3207.82,0.00029576,7]
[391170750,1760406643668,-1136.06,0.00029576,7]
[391170753,1760406643678,-500.0,0.00029576,7]
[391170755,1760406643687,-1690.28,0.00029576,7]
[391170757,1760406643697,-221.098866,0.00029576,7]
[391170759,1760406643707,-500.0,0.00029576,7]
[391170761,1760406643716,-1676.35,0.00029576,7]
[391170763,1760406643726,-622.52,0.00029576,7]
[391170765,1760406643735,-500.0,0.00029576,7]
[391170767,1760406643744,-1041.56,0.00029576,7]
[391170769,1760406643754,-500.0,0.00029576,7]
[391170771,1760406643764,-500.0,0.00029576,7]
[391170773,1760406643773,-669.18,0.00029576,7]
[391170775,1760406643784,-781.32,0.00029576,7]
[391170777,1760406643794,-500.0,0.00029576,7]
[391170779,1760406643804,-1181.03,0.00029576,7]
[391170781,1760406643814,-500.0,0.00029576,7]
[391170783,1760406643823,-1786.3,0.00029576,7]
[391170786,1760406643833,-833.38,0.00029576,7]
[391170788,1760406643843,-500.0,0.00029576,7]
[391170790,1760406643852,-500.0,0.00029576,7]
[391170792,1760406643866,-500.0,0.00029576,7]
[391170794,1760406643876,-653.27,0.00029576,7]
[391170796,1760406643885,-500.0,0.00029576,7]
[391170798,1760406643896,-584.17,0.00029576,7]
[391170800,1760406643906,-989.52,0.00029576,7]
[391170802,1760406643916,-763.42,0.00029576,7]
[391170805,1760406643926,-500.0,0.00029576,7]
[391170807,1760406643939,-1383.96,0.00029576,7]
[391170809,1760406643948,-500.0,0.00029576,7]
[391170811,1760406643958,-500.0,0.00029576,7]
[391170813,1760406643968,-569.36,0.00029576,7]
[391170815,1760406643977,-151.0,0.00029576,30]
[391170817,1760406643987,-500.0,0.00029576,7]
[391170819,1760406643998,-500.0,0.00029576,7]
[391170821,1760406644008,-530.92,0.00029576,7]
[391170823,1760406644018,-500.0,0.00029576,7]
[391170825,1760406644027,-669.32,0.00029576,7]
[391170827,1760406644038,-906.97,0.00029576,7]
[391170829,1760406644047,-1064.26,0.00029576,7]
[391170832,1760406644057,-500.0,0.00029576,7]
[391170834,1760406644067,-580.22,0.00029576,7]
[391170836,1760406644076,-500.0,0.00029576,7]
[391170838,1760406644086,-1685.17,0.00029576,7]
[391170840,1760406644095,-500.0,0.00029576,7]
[391170842,1760406644105,-151.0,0.00029576,7]
[391170844,1760406644114,-336.73005223,0.00029576,7]
[391170846,1760406644124,-500.0,0.00029576,7]
[391170848,1760406644133,-151.0,0.00029576,30]
[391170850,1760406644143,-500.0,0.00029576,7]
[391170852,1760406644154,-500.0,0.00029576,7]
[391170854,1760406644163,-1695.59,0.00029576,7]
[391170857,1760406644174,-1109.26,0.00029576,7]
[391170859,1760406644184,-151.0,0.00029576,30]
[391170896,1760406644512,-601.19,0.00029576,7]
[391170898,1760406644522,-151.0,0.00029576,30]
[391170900,1760406644531,-500.0,0.00029576,7]
[391170902,1760406644541,-500.0,0.00029576,7]
[391170904,1760406644550,-151.0,0.00029576,30]
[391170906,1760406644559,-500.0,0.00029576,7]
[391170908,1760406644568,-1844.75,0.00029576,7]
[391170910,1760406644577,-151.0,0.00029576,30]
[391170912,1760406644586,-500.0,0.00029576,7]
[391170914,1760406644595,-681.82,0.00029576,7]
[391170916,1760406644605,-661.63,0.00029576,7]
[391170919,1760406644614,-1031.76,0.00029576,7]
[391170921,1760406644623,-696.08,0.00029576,7]
[391170923,1760406644632,-500.0,0.00029576,7]
[391170925,1760406644641,-151.0,0.00029576,30]
[391170927,1760406644651,-500.0,0.00029576,7]
[391170929,1760406644660,-500.0,0.00029576,7]
[391170931,1760406644669,-500.0,0.00029576,7]
[391170933,1760406644677,-688.05,0.00029576,7]
[391170935,1760406644686,-500.0,0.00029576,7]
[391170937,1760406644696,-500.0,0.00029576,7]
[391170939,1760406644706,-500.0,0.00029576,7]
[391170941,1760406644715,-500.0,0.00029576,7]
[391170943,1760406644725,-726.39,0.00029576,7]
[391170945,1760406644734,-500.0,0.00029576,7]
[391170947,1760406644743,-500.0,0.00029576,7]
[391170949,1760406644752,-576.18,0.00029576,7]
[391170951,1760406644761,-500.0,0.00029576,7]
[391170953,1760406644771,-500.0,0.00029576,7]
[391170955,1760406644780,-500.0,0.00029576,7]
[391170957,1760406644789,-500.0,0.00029576,7]
[391170959,1760406644798,-500.0,0.00029576,7]
[391170961,1760406644808,-500.0,0.00029576,7]
[391170963,1760406644817,-886.93,0.00029576,7]
[391170965,1760406644826,-500.0,0.00029576,7]
[391170967,1760406644836,-564.68,0.00029576,7]
[391170969,1760406644845,-4506.19,0.00029576,7]
[391170971,1760406644855,-841.5,0.00029576,7]
[391170974,1760406644867,-3870.95,0.00029576,7]
[391170976,1760406644876,-1126.73,0.00029576,7]
[391170978,1760406644885,-1077.71,0.00029576,7]
[391170979,1760406644894,-8686.01,0.00029576,7]
[391170981,1760406644905,-900.66,0.00029576,7]
[391170984,1760406644915,-500.0,0.00029576,7]
[391170986,1760406644924,-500.0,0.00029576,7]
[391170988,1760406644935,-773.84,0.00029576,7]
[391170990,1760406644944,-500.0,0.00029576,7]
[391170992,1760406644955,-500.0,0.00029576,7]
[391170994,1760406644969,-500.0,0.00029576,7]
[391170996,1760406644979,-513.88273931,0.00029576,7]
[391170998,1760406644988,-2000.0,0.00029576,30]
[391170999,1760406644998,-500.0,0.00029576,7]
[391171002,1760406645008,-433.8566442,0.00029576,7]
[391171004,1760406645017,-500.0,0.00029576,7]
[391171006,1760406645027,-531.71,0.00029576,7]
[391171008,1760406645036,-1668.73,0.00029576,7]
[391171010,1760406645046,-642.0815359,0.00029576,7]
[391171012,1760406645056,-500.0,0.00029576,7]
[391171014,1760406645065,-500.0,0.00029576,7]
[391171016,1760406645074,-500.0,0.00029576,7]
[391171018,1760406645085,-619.33,0.00029576,7]
[391171020,1760406645094,-434.51591144,0.00029576,7]
[391171022,1760406645103,-500.0,0.00029576,7]
[391171024,1760406645113,-500.0,0.00029576,7]
[391171026,1760406645122,-500.0,0.00029576,7]
[391171028,1760406645132,-500.0,0.00029576,7]
[391171030,1760406645141,-161.804324,0.00029576,30]
[391171032,1760406645151,-5000.0,0.00029577,2]
[391171034,1760406645160,-456.02788367,0.00029577,3]
[391171166,1760406646436,-500.0,0.00029576,7]
[391171168,1760406646445,-401.90194862,0.00029577,3]
[391171170,1760406646455,-2741.16468483,0.00029577,3]
[391171173,1760406646466,-1193.43058501,0.00029577,3]
[391171476,1760406649358,-500.0,0.00028404,7]
[391171479,1760406649371,-781.96,0.00028404,7]
[391171481,1760406649390,-1177.5581304,0.00028575,7]
[391171484,1760406649406,-106.8918696,0.00028575,7]
[391171487,1760406649420,-893.1081304,0.00029081,7]
[391171543,1760406649934,-273.20310905,0.00029081,7]
[391171614,1760406650698,-118.13876055,0.00029081,7]
[391171616,1760406650713,-278.99580798,0.00029095,7]
[391171646,1760406650983,-221.00419202,0.00029095,7]
[391171648,1760406650997,-781.96,0.00029095,7]
[391171651,1760406651013,-151.0,0.00029096,30]
[391171654,1760406651027,-246.18449,0.00029096,30]
[391171656,1760406651041,-500.0,0.00029096,7]
[391171659,1760406651055,-2545.0,0.00029325,2]
[391171661,1760406651069,-1284.45,0.00029429,7]
[391171664,1760406651085,-1284.45,0.00029575,7]
[391171666,1760406651098,-500.0,0.00029576,7]
[391171669,1760406651112,-151.0,0.00029576,30]
[391171671,1760406651126,-151.0,0.00029576,30]
[391171674,1760406651140,-781.96,0.00029576,7]
[391171676,1760406651153,-500.0,0.00029576,7]
[391171679,1760406651168,-50762.47489787,0.00029577,3]
[391171681,1760406651181,-151.555315,0.00029577,30]
[391171684,1760406651195,-160.47806307,0.00029589,2]
[391171687,1760406651208,-160.47806306,0.00029597,2]
[391171689,1760406651222,-177.28938658,0.00029597,2]
[391171692,1760406651237,-202.88595744,0.00029598,2]
[391171694,1760406651252,-200.43323476,0.00029598,5]
[391171697,1760406651267,-272.96534896,0.00029598,2]
[391171699,1760406651281,-152.12513325,0.00029598,4]
[391171702,1760406651295,-152.12513325,0.00029598,4]
[391171705,1760406651309,-305.9937,0.00029599,2]
[391171707,1760406651323,-2167.78809545,0.00029599,2]
[391171710,1760406651337,-13775.20280852,0.000296,2]
[391171712,1760406651351,-5204.05115836,0.000296,2]
[391171715,1760406651365,-160.47806306,0.00029604,2]
[391171717,1760406651378,-376.74934763,0.00029605,2]
[391171720,1760406651391,-152.12,0.0002961,4]
[391171722,1760406651406,-23310.6878715,0.00029611,2]
[391171725,1760406651420,-1591.8174607,0.00029611,2]
[391171727,1760406651434,-7850.0493625,0.00029611,2]
[391171729,1760406651457,-160.47806306,0.00029612,2]
[391171732,1760406651479,-500.0,0.00029612,120]
[391171734,1760406651492,-500.0,0.00029612,120]
[391171737,1760406651507,-953.0,0.00029613,2]
[391171739,1760406651521,-18967.15,0.00029616,8]
[391171742,1760406651534,-953.0,0.00029617,7]
[391171744,1760406651548,-954.0,0.00029618,2]
[391171747,1760406651563,-160.47806306,0.0002962,2]
[391171749,1760406651579,-160.47806306,0.00029628,2]
[391171752,1760406651594,-170.8508465,0.00029629,30]
[391171755,1760406651609,-160.47806306,0.00029635,2]
[391171757,1760406651623,-272.96534894,0.00029636,2]
[391171760,1760406651637,-200.43323475,0.00029636,5]
[391171762,1760406651651,-2167.78809543,0.00029637,2]
[391171765,1760406651666,-160.47806306,0.00029643,2]
[391171767,1760406651681,-151.0,0.00029646,30]
[391171770,1760406651695,-151.0,0.00029646,30]
[391171772,1760406651709,-151.0,0.00029646,30]
[391171775,1760406651723,-160.47806306,0.00029651,2]
[391171777,1760406651738,-152.08116719,0.00029656,60]
[391171780,1760406651753,-150.0,0.00029656,60]
[391171782,1760406651767,-150.73970217,0.00029656,60]
[391171783,1760406651782,-500.0,0.00029656,60]
[391171786,1760406651796,-500.0,0.00029656,60]
[391171788,1760406651811,-500.0,0.00029656,60]
[391171790,1760406651824,-200.629959,0.00029656,60]
[391171792,1760406651837,-150.0,0.00029656,60]